fUST/lending_fUST_20250520
["ID","MTS","AMOUNT","RATE_DAILY","PERIOD"]
[361705702,1747709437387,-430.0,0.00016438,2]
[361705703,1747709437396,-430.0,0.00016438,2]
[361705704,1747709437406,-654.45,0.00016438,2]
[361705705,1747709437416,-1010.28,0.00016438,2]
[361705706,1747709437425,-430.0,0.00016438,2]
[361705707,1747709437435,-430.0,0.00016438,2]
[361705708,1747709437444,-430.0,0.00016438,2]
[361705709,1747709437455,-430.0,0.00016438,2]
[361705710,1747709437466,-430.0,0.00016438,2]
[361705711,1747709437475,-430.0,0.00016438,2]
[361705712,1747709437485,-503.42,0.00016438,2]
[361705713,1747709437495,-763.02,0.00016438,2]
[361705714,1747709437505,-430.0,0.00016438,2]
[361705715,1747709437515,-435.8,0.00016438,2]
[361705716,1747709437524,-241.938359,0.00016438,2]
[361705717,1747709437534,-241.938359,0.00016438,2]
[361705718,1747709437543,-241.938359,0.00016438,2]
[361705719,1747709437553,-241.938359,0.00016438,2]
[361705720,1747709437563,-241.938359,0.00016438,2]
[361705721,1747709437573,-430.0,0.00016438,2]
[361705722,1747709437583,-241.938359,0.00016438,2]
[361705723,1747709437594,-241.938359,0.00016438,2]
[361705724,1747709437604,-241.938359,0.00016438,2]
[361705725,1747709437614,-241.938359,0.00016438,2]
[361705726,1747709437624,-241.938359,0.00016438,2]
[361705727,1747709437635,-657.85,0.00016438,2]
[361705728,1747709437646,-151.0,0.00016438,2]
[361705729,1747709437656,-151.0,0.00016438,2]
[361705730,1747709437667,-151.0,0.00016438,2]
[361705731,1747709437678,-151.0,0.00016438,2]
[361705732,1747709437689,-152.802459,0.00016438,2]
[361705733,1747709437700,-430.0,0.00016438,2]
[361705734,1747709437710,-500.0,0.00016438,2]
[361705735,1747709437720,-430.0,0.00016438,2]
[361705736,1747709437731,-458.32348441,0.00016438,2]
[361705737,1747709437741,-430.0,0.00016438,2]
[361705738,1747709437754,-408.92609476,0.00016438,2]
[361705739,1747709437764,-430.0,0.00016438,2]
[361705740,1747709437775,-405.51665021,0.00016438,2]
[361705741,1747709437786,-583.36,0.00016438,2]
[361705742,1747709437797,-430.0,0.00016438,2]
[361705743,1747709437807,-430.0,0.00016438,2]
[361705744,1747709437816,-430.0,0.00016438,2]
[361705745,1747709437826,-430.0,0.00016438,2]
[361705746,1747709437836,-574.43,0.00016438,2]
[361705747,1747709437847,-400.0,0.00016438,2]
[361705748,1747709437857,-430.0,0.00016438,2]
[361705749,1747709437868,-408.74821515,0.00016438,2]
[361705750,1747709437881,-430.0,0.00016438,2]
[361705751,1747709437892,-430.0,0.00016438,2]
[361705752,1747709437902,-430.0,0.00016438,2]
[361705753,1747709437912,-697.55,0.00016438,2]
[361705754,1747709437924,-430.0,0.00016438,2]
[361705755,1747709437935,-430.0,0.00016438,2]
[361705756,1747709437946,-419.38450716,0.00016438,2]
[361705757,1747709437956,-430.0,0.00016438,2]
[361705758,1747709437966,-406.21905309,0.00016438,2]
[361705759,1747709437978,-588.09,0.00016438,2]
[361705760,1747709437989,-417.91262611,0.00016438,2]
[361705761,1747709437999,-407.59634751,0.00016438,2]
[361705762,1747709438009,-421.72134209,0.00016438,2]
[361705763,1747709438019,-1048.67975971,0.00016438,2]
[361705764,1747709438029,-430.0,0.00016438,2]
[361705765,1747709438039,-512.52,0.00016438,2]
[361705766,1747709438048,-325.43164555,0.00016438,2]
[361705767,1747709438058,-406.51424278,0.00016438,2]
[361705768,1747709438070,-675.6,0.00016438,2]
[361705769,1747709438081,-430.0,0.00016438,2]
[361705770,1747709438092,-2165.66,0.00016438,2]
[361705771,1747709438103,-412.97171181,0.00016438,2]
[361705772,1747709438114,-416.20648566,0.00016438,2]
[361705773,1747709438125,-438.12037596,0.00016438,2]
[361705774,1747709438134,-430.0,0.00016438,2]
[361705775,1747709438145,-430.0,0.00016438,2]
[361705776,1747709438158,-426.48853856,0.00016438,2]
[361705777,1747709438169,-191.690928,0.00016438,2]
[361705778,1747709438180,-191.690928,0.00016438,2]
[361705780,1747709438191,-191.690928,0.00016438,2]
[361705781,1747709438202,-414.36309985,0.00016438,2]
[361705782,1747709438212,-418.55398836,0.00016438,2]
[361705785,1747709438225,-191.690928,0.00016438,2]
[361705786,1747709438238,-191.690928,0.00016438,2]
[361705787,1747709438248,-191.690928,0.00016438,2]
[361705788,1747709438260,-430.0,0.00016438,2]
[361705789,1747709438271,-3906.55,0.00016438,2]
[361705790,1747709438281,-2209.29,0.00016438,2]
[361705792,1747709438291,-191.690928,0.00016438,2]
[361705793,1747709438302,-3105.47,0.00016438,2]
[361705794,1747709438312,-191.690928,0.00016438,2]
[361705795,1747709438323,-450.0,0.00016438,2]
[361705796,1747709438334,-191.690928,0.00016438,2]
[361705797,1747709438344,-191.690928,0.00016438,2]
[361705798,1747709438354,-191.690928,0.00016438,2]
[361705799,1747709438364,-191.690928,0.00016438,2]
[361705800,1747709438374,-430.0,0.00016438,2]
[361705801,1747709438384,-414.1506237,0.00016438,2]
[361705803,1747709438394,-755.57,0.00016438,2]
[361705804,1747709438403,-415.31158358,0.00016438,2]
[361705805,1747709438413,-430.0,0.00016438,2]
[361705806,1747709438424,-402.7727925,0.00016438,2]
[361705807,1747709438434,-936.96,0.00016438,2]
[361705809,1747709438444,-457.37,0.00016438,2]
[361705811,1747709438454,-430.0,0.00016438,2]
[361705813,1747709438465,-402.56947384,0.00016438,2]
[361705815,1747709438475,-242.2459901,0.00016438,2]
[361705817,1747709438487,-422.797985,0.00016438,2]
[361705818,1747709438496,-3484.83,0.00016438,2]
[361705820,1747709438506,-430.0,0.00016438,2]
[361705822,1747709438516,-430.0,0.00016438,2]
[361705825,1747709438526,-430.0,0.00016438,2]
[361705826,1747709438537,-1061.88,0.00016438,2]
[361705828,1747709438550,-430.0,0.00016438,2]
[361705830,1747709438560,-461.71874126,0.00016438,2]
[361705832,1747709438569,-5834.94,0.00016438,2]
[361705834,1747709438579,-430.0,0.00016438,2]
[361705836,1747709438590,-430.0,0.00016438,2]
[361705838,1747709438599,-288.04883188,0.00016438,2]
[361705840,1747709438749,-4229.34,0.00016438,2]
[361705841,1747709438759,-453.94659006,0.00016438,2]
[361705842,1747709438769,-430.0,0.00016438,2]
[361705843,1747709438779,-430.0,0.00016438,2]
[361705844,1747709438789,-430.0,0.00016438,2]
[361705845,1747709438800,-408.11017324,0.00016438,2]
[361705846,1747709438810,-693.08,0.00016438,2]
[361705847,1747709438821,-430.0,0.00016438,2]
[361705848,1747709438832,-499.34,0.00016438,2]
[361705849,1747709438843,-425.4498869,0.00016438,2]
[361705850,1747709438853,-411.27567292,0.00016438,2]
[361705851,1747709438862,-452.96730173,0.00016438,2]
[361705852,1747709438872,-999.27,0.00016438,2]
[361705853,1747709438882,-435.21850622,0.00016438,2]
[361705854,1747709438891,-412.02850224,0.00016438,2]
[361705855,1747709438901,-430.0,0.00016438,2]
[361705856,1747709438912,-430.0,0.00016438,2]
[361705857,1747709438924,-151.0,0.00016438,2]
[361705858,1747709438935,-430.0,0.00016438,2]
[361705859,1747709438948,-151.0,0.00016438,2]
[361705860,1747709438958,-430.0,0.00016438,2]
[361705861,1747709438968,-472.30148178,0.00016438,2]
[361705862,1747709438978,-151.0,0.00016438,2]
[361705863,1747709438989,-151.0,0.00016438,2]
[361705864,1747709438999,-231.780617,0.00016438,2]
[361705865,1747709439010,-1448.4,0.00016438,2]
[361705866,1747709439020,-404.14157651,0.00016438,2]
[361705867,1747709439029,-441.9,0.00016438,2]
[361705868,1747709439040,-1432.56,0.00016438,2]
[361705869,1747709439050,-1743.07,0.00016438,2]
[361705870,1747709439061,-7151.83,0.00016438,2]
[361705871,1747709439072,-414.93592923,0.00016438,2]
[361705872,1747709439083,-430.0,0.00016438,2]
[361705873,1747709439094,-403.48977541,0.00016438,2]
[361705874,1747709439104,-571.25,0.00016438,2]
[361705875,1747709439113,-2008.45,0.00016438,2]
[361705876,1747709439123,-414.405316,0.00016438,2]
[361705877,1747709439132,-433.66579164,0.00016438,2]
[361705878,1747709439142,-430.0,0.00016438,2]
[361705879,1747709439153,-430.0,0.00016438,2]
[361705880,1747709439163,-430.0,0.00016438,2]
[361705881,1747709439172,-430.0,0.00016438,2]
[361705882,1747709439183,-2684.56,0.00016438,2]
[361705883,1747709439193,-1518.76,0.00016438,2]
[361705884,1747709439204,-550.8,0.00016438,2]
[361705885,1747709439214,-430.0,0.00016438,2]
[361705886,1747709439226,-430.0,0.00016438,2]
[361705887,1747709439238,-419.72761675,0.00016438,2]
[361705888,1747709439250,-403.29834487,0.00016438,2]
[361705889,1747709439263,-430.0,0.00016438,2]
[361705890,1747709439275,-430.0,0.00016438,2]
[361705891,1747709439286,-528.38135987,0.00016438,2]
[361705892,1747709439297,-611.82,0.00016438,2]
[361705893,1747709439308,-430.0,0.00016438,2]
[361705894,1747709439317,-430.0,0.00016438,2]
[361705895,1747709439327,-1880.92,0.00016438,2]
[361705896,1747709439338,-425.41441156,0.00016438,2]
[361705897,1747709439349,-430.0,0.00016438,2]
[361705898,1747709439359,-430.0,0.00016438,2]
[361705899,1747709439371,-909.75,0.00016438,2]
[361705900,1747709439381,-392.1987788,0.00016438,2]
[361705901,1747709439390,-430.0,0.00016438,2]
[361705902,1747709439400,-430.0,0.00016438,2]
[361705903,1747709439410,-430.0,0.00016438,2]
[361705904,1747709439420,-430.0,0.00016438,2]
[361705905,1747709439430,-290.63884412,0.00016438,2]
[361705906,1747709439441,-430.0,0.00016438,2]
[361705907,1747709439450,-243.55744597,0.00016438,2]
[361705908,1747709439460,-492.78,0.00016438,2]
[361705909,1747709439470,-430.0,0.00016438,2]
[361705910,1747709439482,-599.0,0.00016438,2]
[361705911,1747709439491,-430.0,0.00016438,2]
[361705912,1747709439501,-430.0,0.00016438,2]
[361705913,1747709439510,-442.15745603,0.00016438,2]
[361705914,1747709439521,-430.0,0.00016438,2]
[361705915,1747709439531,-1513.81,0.00016438,2]
[361705916,1747709439540,-430.0,0.00016438,2]
[361705917,1747709439550,-430.0,0.00016438,2]
[361705918,1747709439559,-430.0,0.00016438,2]
[361705919,1747709439569,-402.38401367,0.00016438,2]
[361705920,1747709439579,-558.78125998,0.00016438,2]
[361705921,1747709439588,-887.11,0.00016438,2]
[361705922,1747709439598,-430.0,0.00016438,2]
[361705923,1747709439609,-626.56,0.00016438,2]
[361705924,1747709439620,-430.0,0.00016438,2]
[361705925,1747709439630,-430.0,0.00016438,2]
[361705926,1747709439639,-448.78779347,0.00016438,2]
[361705927,1747709439648,-430.0,0.00016438,2]
[361705928,1747709439658,-2330.63,0.00016438,2]
[361705929,1747709439668,-430.0,0.00016438,2]
[361705930,1747709439678,-468.86,0.00016438,2]
[361705931,1747709439687,-433.77,0.00016438,2]
[361705932,1747709439697,-430.0,0.00016438,2]
[361705933,1747709439707,-1474.31,0.00016438,2]
[361705934,1747709439716,-430.0,0.00016438,2]
[361705935,1747709439726,-430.0,0.00016438,2]
[361705936,1747709439735,-749.17,0.00016438,2]
[361705937,1747709439746,-1184.42,0.00016438,2]
[361705938,1747709439757,-414.64797292,0.00016438,2]
[361705939,1747709439767,-430.0,0.00016438,2]
[361705940,1747709439777,-953.46,0.00016438,2]
[361705941,1747709439786,-734.22,0.00016438,2]
[361705942,1747709439796,-151.0,0.00016438,2]
[361705943,1747709439805,-151.0,0.00016438,2]
[361705944,1747709439815,-151.0,0.00016438,2]
[361705945,1747709439825,-433.25541399,0.00016438,2]
[361705946,1747709439835,-1149.29,0.00016438,2]
[361705947,1747709439846,-3412.69,0.00016438,2]
[361705948,1747709439855,-430.0,0.00016438,2]
[361705949,1747709439865,-151.0,0.00016438,2]
[361705950,1747709439874,-152.92748,0.00016438,2]
[361705951,1747709439883,-533.43,0.00016438,2]
[361705952,1747709439893,-430.0,0.00016438,2]
[361705953,1747709439902,-430.0,0.00016438,2]
[361705954,1747709439914,-901.21,0.00016438,2]
[361705955,1747709439926,-411.29932528,0.00016438,2]
[361705956,1747709439936,-430.0,0.00016438,2]
[361705957,1747709439946,-430.0,0.00016438,2]
[361705958,1747709439957,-430.0,0.00016438,2]
[361705959,1747709439966,-430.0,0.00016438,2]
[361705960,1747709439976,-10577.91,0.00016438,2]
[361705961,1747709439986,-2487.46,0.00016438,2]
[361705962,1747709439995,-430.0,0.00016438,2]
[361705963,1747709440006,-430.0,0.00016438,2]
[361705964,1747709440016,-426.60772689,0.00016438,2]
[361705965,1747709440028,-575.56333471,0.00016438,2]
[361705966,1747709440038,-430.0,0.00016438,2]
[361705967,1747709440050,-1927.18,0.00016438,2]
[361705968,1747709440059,-430.0,0.00016438,2]
[361705969,1747709440069,-410.82896797,0.00016438,2]
[361705970,1747709440080,-2057.13,0.00016438,2]
[361705971,1747709440090,-411.75642779,0.00016438,2]
[361705972,1747709440099,-402.7700566,0.00016438,2]
[361705973,1747709440111,-1019.7,0.00016438,2]
[361705974,1747709440121,-430.0,0.00016438,2]
[361705975,1747709440130,-436.8554225,0.00016438,2]
[361705976,1747709440142,-430.0,0.00016438,2]
[361705977,1747709440153,-645.82,0.00016438,2]
[361705979,1747709440163,-430.0,0.00016438,2]
[361705981,1747709440174,-2024.17,0.00016438,2]
[361705983,1747709440183,-533.33,0.00016438,2]
[361705985,1747709440193,-1036.95,0.00016438,2]
[361705987,1747709440202,-693.88,0.00016438,2]
[361705989,1747709440211,-430.0,0.00016438,2]
[361705991,1747709440223,-405.37930245,0.00016438,2]
[361705993,1747709440233,-360.95113158,0.00016438,2]
[361705995,1747709440242,-430.0,0.00016438,2]
[361705997,1747709440251,-406.7134685,0.00016438,2]
[361705999,1747709440261,-430.0,0.00016438,2]
[361706001,1747709440270,-2775.57,0.00016438,2]
[361706003,1747709440280,-430.0,0.00016438,2]
[361706005,1747709440289,-5848.24,0.00016438,2]
[361706007,1747709440301,-939.88,0.00016438,2]
[361706009,1747709440311,-468.52,0.00016438,2]
[361706012,1747709440320,-1297.08,0.00016438,2]
[361706014,1747709440330,-280.694746,0.00016438,2]
[361706016,1747709440340,-2231.62,0.00016438,2]
[361706018,1747709440350,-280.694746,0.00016438,2]
[361706020,1747709440359,-280.694746,0.00016438,2]
[361706022,1747709440369,-280.694746,0.00016438,2]
[361706025,1747709440378,-1262.63,0.00016438,2]
[361706028,1747709440388,-280.694746,0.00016438,2]
[361706031,1747709440397,-280.694746,0.00016438,2]
[361706034,1747709440406,-280.694746,0.00016438,2]
[361706036,1747709440415,-430.0,0.00016438,2]
[361706039,1747709440425,-280.694746,0.00016438,2]
[361706041,1747709440435,-280.694746,0.00016438,2]
[361706043,1747709440444,-408.77794614,0.00016438,2]
[361706045,1747709440454,-280.694746,0.00016438,2]
[361706047,1747709440463,-1329.55,0.00016438,2]
[361706049,1747709440474,-280.694746,0.00016438,2]
[361706051,1747709440483,-280.694746,0.00016438,2]
[361706053,1747709440493,-280.694746,0.00016438,2]
[361706055,1747709440503,-752.91,0.00016438,2]
[361706057,1747709440513,-280.694746,0.00016438,2]
[361706059,1747709440523,-10132.93,0.00016438,2]
[361706061,1747709440532,-430.0,0.00016438,2]
[361706063,1747709440542,-3272.64,0.00016438,2]
[361706065,1747709440552,-409.49654014,0.00016438,2]
[361706067,1747709440567,-430.0,0.00016438,2]
[361706070,1747709440577,-2365.5,0.00016438,2]
[361706072,1747709440589,-412.65361135,0.00016438,2]
[361706074,1747709440600,-1871.62,0.00016438,2]
[361706076,1747709440610,-334.01460011,0.00016438,2]
[361706078,1747709440620,-638.57,0.00016438,2]
[361706080,1747709440630,-430.0,0.00016438,2]
[361706083,1747709440640,-2083.43,0.00016438,2]
[361706085,1747709440650,-435.04071221,0.00016438,2]
[361706088,1747709440661,-430.0,0.00016438,2]
[361706090,1747709440672,-353.22333873,0.00016438,2]
[361706092,1747709440683,-430.0,0.00016438,2]
[361706095,1747709440692,-430.0,0.00016438,2]
[361706096,1747709440702,-402.56902387,0.00016438,2]
[361706097,1747709440713,-550.21366521,0.00016438,2]
[361706098,1747709440725,-453.07215491,0.00016438,2]
[361706099,1747709440735,-430.0,0.00016438,2]
[361706100,1747709440746,-1348.95,0.00016438,2]
[361706101,1747709440758,-1485.69,0.00016438,2]
[361706102,1747709440769,-304.91553664,0.00016438,2]
[361706103,1747709440780,-430.0,0.00016438,2]
[361706104,1747709440791,-347.12698007,0.00016438,2]
[361706105,1747709440802,-430.0,0.00016438,2]
[361706106,1747709440812,-872.69,0.00016438,2]
[361706107,1747709440822,-192.82496941,0.00016438,3]
[361706108,1747709440834,-151.0,0.00016438,2]
[361706109,1747709440846,-151.0,0.00016438,2]
[361706110,1747709440856,-151.0,0.00016438,2]
[361706111,1747709440865,-151.0,0.00016438,2]
[361706112,1747709440875,-151.0,0.00016438,2]
[361706113,1747709440885,-151.0,0.00016438,2]
[361706114,1747709440896,-151.0,0.00016438,2]
[361706115,1747709440906,-161.171273,0.00016438,2]
[361706116,1747709440917,-151.0,0.00016473,2]
[361706117,1747709440928,-151.0,0.00016473,2]
[361706118,1747709440940,-500.0,0.0001648,2]
[361706119,1747709440950,-500.0,0.0001648,2]
[361706120,1747709440961,-500.0,0.0001648,2]
[361706121,1747709440971,-500.0,0.0001648,2]
[361706122,1747709440983,-503.97720833,0.0001648,2]
[361706123,1747709440994,-151.0,0.000165,2]
[361706124,1747709441006,-420.0,0.0001653,2]
[361706125,1747709441017,-151.0,0.000166,2]
[361706126,1747709441028,-3329.38771325,0.00016624,2]
[361706127,1747709441042,-3375.16853946,0.00016651,2]
[361706128,1747709441052,-182.6920467,0.00016685,2]
[361706129,1747709441063,-157.7160156,0.00016685,2]
[361706130,1747709441074,-151.0,0.000167,2]
[361706131,1747709441085,-160.0,0.00016711,2]
[361706132,1747709441096,-160.0,0.00016711,2]
[361706133,1747709441106,-151.0,0.00016712,2]
[361706134,1747709441118,-151.0,0.00016712,2]
[361706135,1747709441128,-151.0,0.00016712,2]
[361706136,1747709441138,-270.464652,0.00016712,2]
[361706137,1747709441150,-151.830794,0.00016712,2]
[361706138,1747709441159,-151.0,0.00016712,2]
[361706139,1747709441169,-151.0,0.00016712,2]
[361706140,1747709441181,-151.0,0.00016712,2]
[361706141,1747709441193,-151.0,0.00016712,2]
[361706142,1747709441203,-151.0,0.00016712,2]
[361706143,1747709441212,-266.781321,0.00016712,2]
[361706144,1747709441223,-151.0,0.00016712,2]
[361706145,1747709441236,-151.0,0.00016712,2]
[361706146,1747709441246,-247.340771,0.00016712,2]
[361706147,1747709441255,-247.340771,0.00016712,2]
[361706148,1747709441266,-247.340771,0.00016712,2]
[361706149,1747709441277,-247.340771,0.00016712,2]
[361706150,1747709441287,-151.0,0.00016712,2]
[361706151,1747709441299,-151.0,0.00016712,2]
[361706152,1747709441310,-151.0,0.00016712,2]
[361706153,1747709441321,-151.0,0.00016712,2]
[361706154,1747709441332,-151.0,0.00016712,2]
[361706155,1747709441343,-151.0,0.00016712,2]
[361706156,1747709441353,-151.0,0.00016712,2]
[361706157,1747709441363,-151.0,0.00016712,2]
[361706158,1747709441374,-351.014605,0.00016712,2]
[361706159,1747709441384,-351.014605,0.00016712,2]
[361706160,1747709441394,-351.014605,0.00016712,2]
[361706161,1747709441403,-351.014605,0.00016712,2]
[361706162,1747709441412,-151.0,0.00016712,2]
[361706163,1747709441422,-151.0,0.00016712,2]
[361706164,1747709441431,-151.0,0.00016712,2]
[361706165,1747709441440,-151.0,0.00016712,2]
[361706166,1747709441450,-151.0,0.00016712,2]
[361706167,1747709441459,-151.0,0.00016712,2]
[361706169,1747709441468,-296.130017,0.00016712,2]
[361706170,1747709441478,-151.0,0.00016712,2]
[361706171,1747709441487,-151.0,0.00016712,2]
[361706172,1747709441496,-151.0,0.00016712,2]
[361706173,1747709441506,-151.498166,0.00016712,2]
[361706174,1747709441515,-156.080188,0.00016712,2]
[361706175,1747709441524,-151.0,0.00016712,2]
[361706176,1747709441535,-151.0,0.00016712,2]
[361706177,1747709441544,-151.0,0.00016712,2]
[361706178,1747709441554,-151.0,0.00016712,2]
[361706179,1747709441564,-151.0,0.00016712,2]
[361706180,1747709441573,-151.0,0.00016712,2]
[361706181,1747709441583,-184.903736,0.00016712,2]
[361706182,1747709441593,-184.903736,0.00016712,2]
[361706183,1747709441603,-184.903736,0.00016712,2]
[361706184,1747709441613,-184.903736,0.00016712,2]
[361706185,1747709441623,-184.903736,0.00016712,2]
[361706186,1747709441633,-184.903736,0.00016712,2]
[361706187,1747709441643,-442.64,0.00016712,2]
[361706188,1747709441781,-334.89960281,0.00016712,2]
[361706189,1747709441809,-475.16239462,0.00016712,2]
[361706190,1747709441820,-383.65942728,0.00016712,2]
[361706191,1747709441831,-430.0,0.00016712,2]
[361706192,1747709441842,-242.70074361,0.00016712,2]
[361706193,1747709441852,-430.0,0.00016712,2]
[361706194,1747709441862,-371.81367205,0.00016712,2]
[361706195,1747709441873,-430.0,0.00016712,2]
[361706196,1747709441884,-430.0,0.00016712,2]
[361706197,1747709441895,-430.0,0.00016712,2]
[361706198,1747709441907,-395.4550643,0.00016712,2]
[361706199,1747709441918,-435.91555211,0.00016712,2]
[361706200,1747709441929,-430.0,0.00016712,2]
[361706201,1747709441940,-491.06491886,0.00016712,2]
[361706202,1747709441952,-373.74077879,0.00016712,2]
[361706203,1747709441961,-430.0,0.00016712,2]
[361706204,1747709441971,-430.0,0.00016712,2]
[361706205,1747709441980,-474.12046204,0.00016712,2]
[361706206,1747709441990,-430.0,0.00016712,2]
[361706207,1747709442001,-380.72048411,0.00016712,2]
[361706208,1747709442010,-430.0,0.00016712,2]
[361706209,1747709442020,-473.97277735,0.00016712,2]
[361706210,1747709442029,-588.53,0.00016712,2]
[361706211,1747709442038,-472.73860113,0.00016712,2]
[361706212,1747709442048,-473.80293826,0.00016712,2]
[361706213,1747709442058,-294.26926806,0.00016712,2]
[361706214,1747709442068,-430.0,0.00016712,2]
[361706215,1747709442077,-332.63020343,0.00016712,2]
[361706216,1747709442087,-430.0,0.00016712,2]
[361706217,1747709442097,-430.0,0.00016712,2]
[361706218,1747709442106,-422.82161066,0.00016712,2]
[361706219,1747709442116,-151.0,0.00016712,2]
[361706220,1747709442126,-195.011797,0.00016712,2]
[361706221,1747709442136,-430.0,0.00016712,2]
[361706222,1747709442147,-440.10416159,0.00016712,2]
[361706223,1747709442157,-265.945672,0.00016712,2]
[361706224,1747709442167,-395.02036622,0.00016712,2]
[361706225,1747709442176,-718.31,0.00016712,2]
[361706226,1747709442186,-663.36,0.00016712,2]
[361706227,1747709442195,-219.54328878,0.00016712,2]
[361706228,1747709442205,-430.0,0.00016712,2]
[361706229,1747709442215,-430.0,0.00016712,2]
[361706230,1747709442227,-1128.2,0.00016712,2]
[361706231,1747709442237,-430.0,0.00016712,2]
[361706232,1747709442247,-470.0,0.00016712,2]
[361706233,1747709442256,-430.0,0.00016712,2]
[361706234,1747709442267,-207.5276661,0.00016712,2]
[361706235,1747709442276,-430.0,0.00016712,2]
[361706236,1747709442286,-386.64023349,0.00016712,2]
[361706237,1747709442297,-377.46832488,0.00016712,2]
[361706238,1747709442307,-430.0,0.00016712,2]
[361706239,1747709442316,-430.0,0.00016712,2]
[361706240,1747709442326,-430.0,0.00016712,2]
[361706241,1747709442335,-349.73989259,0.00016712,2]
[361706242,1747709442345,-349.28049335,0.00016712,2]
[361706243,1747709442355,-430.0,0.00016712,2]
[361706244,1747709442365,-430.0,0.00016712,2]
[361706245,1747709442375,-409.95827375,0.00016712,2]
[361706246,1747709442385,-188.99987127,0.00016712,2]
[361706247,1747709442395,-350.31654117,0.00016712,2]
[361706248,1747709442404,-430.0,0.00016712,2]
[361706249,1747709442414,-430.0,0.00016712,2]
[361706250,1747709442425,-430.0,0.00016712,2]
[361706251,1747709442435,-430.0,0.00016712,2]
[361706252,1747709442445,-823.84,0.00016712,2]
[361706253,1747709442455,-531.43,0.00016712,2]
[361706254,1747709442464,-396.55740732,0.00016712,2]
[361706255,1747709442474,-430.0,0.00016712,2]
[361706256,1747709442484,-494.4688748,0.00016712,2]
[361706257,1747709442494,-430.0,0.00016712,2]
[361706258,1747709442504,-384.13739505,0.00016712,2]
[361706259,1747709442515,-430.0,0.00016712,2]
[361706260,1747709442524,-430.0,0.00016712,2]
[361706261,1747709442534,-332.51900637,0.00016712,2]
[361706262,1747709442544,-1987.66,0.00016712,2]
[361706263,1747709442554,-155.72141373,0.00016712,2]
[361706264,1747709442563,-430.0,0.00016712,2]
[361706265,1747709442573,-430.0,0.00016712,2]
[361706266,1747709442583,-430.0,0.00016712,2]
[361706267,1747709442593,-430.0,0.00016712,2]
[361706268,1747709442603,-643.62,0.00016712,2]
[361706269,1747709442613,-430.0,0.00016712,2]
[361706270,1747709442622,-430.0,0.00016712,2]
[361706271,1747709442632,-430.0,0.00016712,2]
[361706272,1747709442641,-430.0,0.00016712,2]
[361706273,1747709442650,-514.36,0.00016712,2]
[361706274,1747709442659,-430.0,0.00016712,2]
[361706275,1747709442669,-437.43,0.00016712,2]
[361706276,1747709442679,-430.0,0.00016712,2]
[361706277,1747709442689,-582.36,0.00016712,2]
[361706278,1747709442699,-430.0,0.00016712,2]
[361706279,1747709442708,-151.0,0.00016712,2]
[361706280,1747709442717,-151.0,0.00016712,2]
[361706281,1747709442727,-151.0,0.00016712,2]
[361706282,1747709442736,-430.0,0.00016712,2]
[361706283,1747709442746,-151.0,0.00016712,2]
[361706284,1747709442755,-151.0,0.00016712,2]
[361706285,1747709442765,-168.059122,0.00016712,2]
[361706286,1747709442774,-430.0,0.00016712,2]
[361706287,1747709442784,-658.74,0.00016712,2]